bitfinex/quotes_BTCUSD_20250212
["timestamp","ask_amount","ask_price","bid_price","bid_amount"]
[1739361082686,0.18350365,96343.0,96341.0,0.0011067]
[1739361082887,0.0788,96342.0,96341.0,0.0011067]
[1739361083306,0.18130365,96342.0,96341.0,0.0001067]
[1739361084356,0.18630365,96342.0,96341.0,0.0001067]
[1739361084937,0.18930365,96342.0,96341.0,0.0001067]
[1739361088879,0.0868,96342.0,96341.0,0.0001067]
[1739361090087,0.0788,96342.0,96341.0,0.0001067]
[1739361090449,0.0848,96342.0,96341.0,0.0001067]
[1739361093433,0.0808,96342.0,96341.0,0.0001067]
[1739361093684,0.18530365,96342.0,96341.0,0.0001067]
[1739361094374,0.33530365,96342.0,96341.0,0.0001067]
[1739361094784,0.33730365,96342.0,96341.0,0.0001067]
[1739361097552,0.33330365,96342.0,96341.0,0.0001067]
[1739361097840,0.33430365,96342.0,96341.0,0.0001067]
[1739361098650,0.33230365,96342.0,96341.0,0.0001067]
[1739361098853,0.33330365,96342.0,96341.0,0.0001067]
[1739361099635,0.35501118,96342.0,96341.0,0.0001067]
[1739361101771,0.35401118,96342.0,96341.0,0.0001067]
[1739361102002,0.35501118,96342.0,96341.0,0.0001067]
[1739361102495,0.35401118,96342.0,96341.0,0.0001067]
[1739361102752,0.35501118,96342.0,96341.0,0.0001067]
[1739361102993,0.33330365,96342.0,96341.0,0.0001067]
[1739361103213,0.33130365,96342.0,96341.0,0.0001067]
[1739361103462,0.33230365,96342.0,96341.0,0.0001067]
[1739361103644,0.66170365,96342.0,96341.0,0.0001067]
[1739361105942,0.68818582,96342.0,96341.0,0.0001067]
[1739361111208,0.66170365,96342.0,96341.0,0.0001067]
[1739361113422,0.70850365,96342.0,96341.0,0.0001067]
[1739361114861,0.70750365,96342.0,96341.0,0.0001067]
[1739361115249,0.71350365,96342.0,96341.0,0.0001067]
[1739361115452,0.70750365,96342.0,96341.0,0.0001067]
[1739361115978,0.72450365,96342.0,96341.0,0.0001067]
[1739361116421,0.73650365,96342.0,96341.0,0.0001067]
[1739361119298,0.7714569,96342.0,96341.0,0.0001067]
[1739361119499,0.73650365,96342.0,96341.0,0.0001067]
[1739361125435,0.15,96341.0,96308.0,0.005042]
[1739361125592,0.09525799,96330.0,96310.0,0.08291831]
[1739361125791,0.09525799,96330.0,96308.0,0.005042]
[1739361125993,0.15,96339.0,96308.0,0.005042]
[1739361126207,0.15,96337.0,96308.0,0.005042]
[1739361126421,0.09525799,96330.0,96308.0,0.005042]
[1739361126781,0.15,96335.0,96308.0,0.005042]
[1739361127040,0.15,96335.0,96310.0,0.09525799]
[1739361127240,0.15,96335.0,96310.0,0.19776164]
[1739361127451,0.15,96339.0,96311.0,0.01009392]
[1739361127597,0.15,96339.0,96312.0,0.10354186]
[1739361127805,0.15,96339.0,96312.0,0.10250365]
[1739361128038,0.15,96339.0,96313.0,0.01009387]
[1739361128586,0.002,96330.0,96314.0,0.0834]
[1739361128879,0.15,96339.0,96314.0,0.0834]
[1739361129094,0.15,96339.0,96315.0,0.01009383]
[1739361129316,0.008,96337.0,96315.0,0.01009383]
[1739361129726,0.002,96330.0,96315.0,0.01009383]
[1739361130104,0.15,96339.0,96315.0,0.01009383]
[1739361130550,0.09525799,96330.0,96301.0,0.2057274]
[1739361130758,0.09525799,96330.0,96316.0,0.0084115]
[1739361130960,0.09525799,96330.0,96302.0,0.10250365]
[1739361131319,0.09525799,96330.0,96303.0,0.00735232]
[1739361131656,0.09525799,96330.0,96311.0,0.0001066]
[1739361132043,0.09725799,96330.0,96311.0,0.0001066]
[1739361132279,0.002,96330.0,96311.0,0.0001066]
[1739361132511,0.0495,96334.0,96311.0,0.0001066]
[1739361132720,0.002,96330.0,96311.0,0.0001066]
[1739361132946,0.005,96330.0,96311.0,0.0001066]
[1739361133180,0.003,96330.0,96311.0,0.0001066]
[1739361133374,0.09725799,96330.0,96311.0,0.0001066]
[1739361133588,0.005,96330.0,96311.0,0.0001066]
[1739361139404,0.005,96330.0,96303.0,0.10241025]
[1739361139761,0.005,96330.0,96304.0,0.01576192]
[1739361140931,0.10250365,96333.0,96304.0,0.01576192]
[1739361141287,0.002,96330.0,96304.0,0.01576192]
[1739361141489,0.005,96330.0,96304.0,0.01576192]
[1739361142051,0.003,96330.0,96304.0,0.01576192]
[1739361142475,0.10550365,96333.0,96310.0,0.09525799]
[1739361142879,0.002,96330.0,96304.0,0.01576192]
[1739361143630,0.002,96330.0,96304.0,0.01040483]
[1739361143835,0.0813,96329.0,96304.0,0.01040483]
[1739361144048,0.0813,96329.0,96310.0,0.0001066]
[1739361144875,0.09525799,96320.0,96310.0,0.0001066]
[1739361145260,0.0808,96319.0,96310.0,0.0001066]
[1739361145892,0.18330365,96319.0,96310.0,0.0001066]
[1739361146043,0.10250365,96318.0,96310.0,0.0001066]
[1739361146374,0.0795,96317.0,96310.0,0.0001066]
[1739361146628,0.14479561,96316.0,96310.0,0.0001066]
[1739361147171,0.226,96315.0,96310.0,0.0001066]
[1739361147377,0.076,96312.0,96310.0,0.0001066]
[1739361147603,0.1985,96311.0,96310.0,0.0001066]
[1739361148195,0.2792,96311.0,96310.0,0.0001066]
[1739361148401,0.32169956,96311.0,96310.0,0.0001066]
[1739361148620,0.42420321,96311.0,96310.0,0.0001066]
[1739361148937,0.42820321,96311.0,96310.0,0.0001066]
[1739361149138,0.43620321,96311.0,96310.0,0.0001066]
[1739361150570,0.42820321,96311.0,96310.0,0.0001066]
[1739361150787,0.43620321,96311.0,96310.0,0.0001066]
[1739361150989,0.45713765,96311.0,96310.0,0.0001066]
[1739361151219,0.46113765,96311.0,96310.0,0.0001066]
[1739361154351,0.44513765,96311.0,96310.0,0.0001066]
[1739361154547,0.45013765,96311.0,96310.0,0.0001066]
[1739361155107,0.46213765,96311.0,96310.0,0.0001066]
[1739361155986,0.45013765,96311.0,96310.0,0.0001066]
[1739361156594,0.45036152,96311.0,96310.0,0.0001066]
[1739361157178,0.46236152,96311.0,96310.0,0.0001066]
[1739361159293,0.79076152,96311.0,96310.0,0.0001066]
[1739361160239,0.77376152,96311.0,96310.0,0.0001066]
[1739361160434,0.70606152,96311.0,96270.0,0.09525799]
[1739361160725,0.0791,96305.0,96270.0,0.09525799]
[1739361160967,0.09525799,96300.0,96271.0,0.01198439]
[1739361161203,0.10250365,96299.0,96270.0,0.09525799]
[1739361163398,0.11450365,96299.0,96270.0,0.09525799]
[1739361164418,0.11950365,96299.0,96270.0,0.09525799]
[1739361164859,0.04438616,96298.0,96270.0,0.09525799]
[1739361165091,0.0767,96297.0,96265.0,0.00103862]
[1739361165296,0.0767,96297.0,96266.0,0.10354226]
[1739361165495,0.0767,96297.0,96266.0,0.11553755]
[1739361165941,0.0767,96297.0,96270.0,0.09525799]
[1739361166728,0.1221,96297.0,96270.0,0.09525799]
[1739361167071,0.1221,96297.0,96266.0,0.11449894]
[1739361167278,0.1371,96297.0,96266.0,0.11449894]
[1739361167468,0.1371,96297.0,96266.0,0.11553755]
[1739361167919,0.1321,96297.0,96270.0,0.09525799]
[1739361168121,0.1221,96297.0,96270.0,0.09525799]
[1739361168313,0.1321,96297.0,96270.0,0.09525799]
[1739361168532,0.1371,96297.0,96270.0,0.09525799]
[1739361168997,0.1371,96297.0,96271.0,0.10354226]
[1739361169206,0.1371,96297.0,96271.0,0.11271791]
[1739361169464,0.1271,96297.0,96271.0,0.11271791]
[1739361169865,0.1321,96297.0,96271.0,0.11271791]
[1739361170387,0.1371,96297.0,96270.0,0.0829759]
[1739361170588,0.1271,96297.0,96271.0,0.01151486]
[1739361170793,0.1221,96297.0,96271.0,0.01151486]
[1739361170997,0.005,96297.0,96271.0,0.0104763]
[1739361171786,0.01,96297.0,96271.0,0.0104763]
[1739361172831,0.005,96297.0,96271.0,0.0104763]
[1739361173036,0.09525799,96300.0,96271.0,0.0104763]
[1739361173236,0.09525799,96290.0,96271.0,0.0104763]
[1739361173648,0.09525799,96290.0,96268.0,0.0767]
[1739361174131,0.082,96289.0,96269.0,0.01048066]
[1739361174327,0.082,96289.0,96271.0,0.001]
[1739361175281,0.18450365,96289.0,96271.0,0.001]
[1739361175493,0.18450365,96289.0,96262.0,0.203934]
[1739361176051,0.18450365,96289.0,96263.0,0.00359474]
[1739361176692,0.18950365,96289.0,96263.0,0.00359474]
[1739361176886,0.18750365,96289.0,96263.0,0.00359474]
[1739361177122,0.18450365,96289.0,96263.0,0.00359474]
[1739361177325,0.10250365,96288.0,96264.0,0.00689685]
[1739361178707,0.10250365,96288.0,96261.0,0.0001066]
[1739361179042,0.10450365,96288.0,96262.0,0.00368234]
[1739361179962,0.10650365,96288.0,96262.0,0.00368234]
[1739361180166,0.10250365,96288.0,96262.0,0.00368234]
[1739361180386,0.10450365,96288.0,96262.0,0.00368234]
[1739361181005,0.03276616,96287.0,96262.0,0.00368234]
[1739361181200,0.10650365,96288.0,96262.0,0.00368234]
[1739361181917,0.10450365,96288.0,96262.0,0.00368234]
[1739361182101,0.10650365,96288.0,96262.0,0.00368234]
[1739361182302,0.10450365,96288.0,96262.0,0.00368234]
[1739361182504,0.0482,96287.0,96262.0,0.00378904]
[1739361182708,0.15070365,96287.0,96262.0,0.00378904]
[1739361183334,0.14870365,96287.0,96262.0,0.00378904]
[1739361183733,0.15070365,96287.0,96262.0,0.00378904]
[1739361184294,0.09525799,96280.0,96262.0,0.00378904]
[1739361184689,0.0462,96278.0,96262.0,0.0001067]
[1739361185315,0.09525799,96272.0,96262.0,0.0001067]
[1739361185578,0.10250365,96277.0,96262.0,0.0001067]
[1739361186009,0.10250365,96277.0,96262.0,0.0041067]
[1739361186483,0.10250365,96277.0,96262.0,0.0001067]
[1739361186872,0.10350365,96277.0,96262.0,0.0071067]
[1739361187475,0.10250365,96277.0,96262.0,0.0001067]
[1739361189415,0.15993514,96277.0,96262.0,0.0001067]
[1739361189924,0.12721898,96277.0,96262.0,0.0001067]
[1739361190262,0.12821898,96277.0,96262.0,0.0071067]
[1739361190481,0.13021898,96277.0,96262.0,0.0071067]
[1739361190702,0.12921898,96277.0,96262.0,0.0001067]
[1739361192055,0.12721898,96277.0,96262.0,0.0001067]
[1739361193884,0.12921898,96277.0,96262.0,0.0001067]
[1739361194438,0.0213951,96279.0,96262.0,0.0001067]
[1739361195220,0.001,96277.0,96262.0,0.0071067]
[1739361195775,0.001,96277.0,96263.0,0.0037153]
[1739361196179,0.001,96277.0,96262.0,0.0071067]
[1739361196400,0.002,96277.0,96262.0,0.0001067]
[1739361196601,0.0213951,96279.0,96262.0,0.0001067]
[1739361197167,0.0233951,96279.0,96262.0,0.0001067]
[1739361197367,0.04844689,96279.0,96262.0,0.0001067]
[1739361197613,0.001,96277.0,96262.0,0.0071067]
[1739361198014,0.0213951,96279.0,96263.0,0.0037153]
[1739361198560,0.0233951,96279.0,96263.0,0.0037153]
[1739361198753,0.0233951,96279.0,96262.0,0.0021067]
[1739361199269,0.0233951,96279.0,96262.0,0.0001067]
[1739361199676,0.0213951,96279.0,96262.0,0.0001067]
[1739361199956,0.0223951,96279.0,96263.0,0.005]
[1739361200269,0.0243951,96279.0,96263.0,0.005]
[1739361200477,0.0213951,96279.0,96262.0,0.0001067]
[1739361200875,0.0233951,96279.0,96262.0,0.0001067]
[1739361201234,0.0213951,96279.0,96262.0,0.0001067]
[1739361201730,0.0213951,96279.0,96263.0,0.005]
[1739361201731,0.0223951,96279.0,96263.0,0.005]
[1739361201933,0.0243951,96279.0,96263.0,0.005]
[1739361202109,0.0243951,96279.0,96250.0,0.09629676]
[1739361202110,0.0243951,96279.0,96250.0,0.09251006]
[1739361202270,0.0243951,96279.0,96251.0,0.10250365]
[1739361202446,0.001,96279.0,96260.0,0.09525799]
[1739361202650,0.08291831,96270.0,96261.0,0.07993877]
[1739361202859,0.09525799,96271.0,96261.0,0.00371534]
[1739361203065,0.0483,96273.0,96261.0,0.00371534]
[1739361203261,0.03008037,96272.0,96247.0,0.0792066]
[1739361203496,0.0483,96273.0,96248.0,0.10250365]
[1739361203696,0.0483,96273.0,96248.0,0.10621928]
[1739361204096,0.001,96271.0,96261.0,0.004]
[1739361204618,0.0483,96273.0,96250.0,0.09525799]
[1739361204835,0.0483,96273.0,96248.0,0.10550365]
[1739361205063,0.0483,96273.0,96261.0,0.001]
[1739361205775,0.0483,96273.0,96248.0,0.10550365]
[1739361205995,0.0483,96273.0,96249.0,0.00374667]
[1739361206185,0.0493,96273.0,96249.0,0.00374667]
[1739361206599,0.001,96271.0,96249.0,0.00374667]
[1739361207018,0.0493,96273.0,96249.0,0.00374667]
[1739361207323,0.0493,96273.0,96261.0,0.0001066]
[1739361207910,0.09525799,96271.0,96261.0,0.0001066]
[1739361208120,0.09625799,96271.0,96261.0,0.0001066]
[1739361208275,0.0767,96270.0,96261.0,0.0001066]
[1739361210215,0.09625799,96271.0,96261.0,0.0001066]
[1739361210412,0.09625799,96271.0,96261.0,0.0011066]
[1739361210658,0.001,96271.0,96261.0,0.0011066]
[1739361211252,0.15,96276.0,96262.0,0.00389067]
[1739361211601,0.001,96271.0,96262.0,0.00389067]
[1739361212132,0.002,96271.0,96262.0,0.00389067]
[1739361212780,0.15,96281.0,96262.0,0.00389067]
[1739361212981,0.15,96281.0,96261.0,0.0011066]
[1739361213163,0.15,96281.0,96261.0,0.0001066]
[1739361213364,0.15,96281.0,96262.0,0.001]
[1739361213726,0.0468,96283.0,96262.0,0.001]
[1739361213727,0.15,96279.0,96262.0,0.001]
[1739361213923,0.15,96279.0,96261.0,0.0001066]
[1739361214469,0.002,96276.0,96261.0,0.0001066]
[1739361214673,0.14529757,96271.0,96261.0,0.0001066]
[1739361214943,0.002,96276.0,96261.0,0.0001066]
[1739361215360,0.153,96279.0,96261.0,0.0001066]
[1739361215534,0.156,96279.0,96261.0,0.0001066]
[1739361215957,0.15,96277.0,96261.0,0.0001066]
[1739361216116,0.25250365,96277.0,96261.0,0.0001066]
[1739361216514,0.03232555,96276.0,96261.0,0.0001066]
[1739361216722,0.14529757,96271.0,96261.0,0.0001066]
[1739361217270,0.0453,96270.0,96261.0,0.0001066]
[1739361218268,0.1953,96270.0,96261.0,0.0001066]
[1739361218476,0.0788,96268.0,96261.0,0.0001066]
[1739361218706,0.15422353,96267.0,96261.0,0.0001066]
[1739361219507,0.15422353,96267.0,96244.0,0.07518787]
[1739361219897,0.10250365,96267.0,96245.0,0.00365015]
[1739361220247,0.10250365,96267.0,96244.0,0.07518787]
[1739361220442,0.001,96267.0,96261.0,0.003]
[1739361220808,0.001,96267.0,96261.0,0.0031067]
[1739361221015,0.00022408,96271.0,96262.0,0.00364978]
[1739361222358,0.001,96267.0,96262.0,0.00364978]
[1739361222815,0.001,96267.0,96261.0,0.0001067]
[1739361223007,0.15122408,96271.0,96261.0,0.0001067]
[1739361223187,0.15122408,96271.0,96262.0,0.001]
[1739361223632,0.15122408,96271.0,96261.0,0.0001067]
[1739361224111,0.001,96267.0,96261.0,0.0031067]
[1739361224449,0.001,96267.0,96262.0,0.001]
[1739361224651,0.001,96267.0,96261.0,0.0031067]
[1739361224652,0.201,96267.0,96261.0,0.0031067]
[1739361225069,0.2,96267.0,96261.0,0.0031067]
[1739361225424,0.2,96267.0,96261.0,0.0001067]
[1739361225637,0.2,96267.0,96262.0,0.001]
[1739361226144,0.4485,96267.0,96261.0,0.0001067]
[1739361226646,0.4495,96267.0,96261.0,0.0031067]
[1739361226943,0.4485,96267.0,96261.0,0.0001067]
[1739361227351,0.4485,96267.0,96261.0,0.0021067]
[1739361227650,0.4485,96267.0,96261.0,0.0031067]
[1739361228153,0.4485,96267.0,96261.0,0.0021067]
[1739361228567,0.4485,96267.0,96261.0,0.0001067]
[1739361228884,0.4495,96267.0,96261.0,0.0041067]
[1739361229415,0.4485,96267.0,96261.0,0.0001067]
[1739361229660,0.4485,96267.0,96261.0,0.0021067]
[1739361230271,0.4485,96267.0,96261.0,0.0001067]
[1739361230475,0.4495,96267.0,96261.0,0.0041067]
[1739361230993,0.47143628,96267.0,96261.0,0.0041067]
[1739361231728,0.03935063,96266.0,96261.0,0.0041067]
[1739361231877,0.47043628,96267.0,96261.0,0.0001067]
[1739361232062,0.47043628,96267.0,96261.0,0.0011067]
[1739361232263,0.47043628,96267.0,96261.0,0.0031067]
[1739361232665,0.47043628,96267.0,96261.0,0.0011067]
[1739361233068,0.47143628,96267.0,96261.0,0.0051067]
[1739361233269,0.5173873,96267.0,96261.0,0.0051067]
[1739361233470,0.5163873,96267.0,96261.0,0.0011067]
[1739361233686,0.10250365,96266.0,96261.0,0.0031067]
[1739361234242,0.10250365,96266.0,96261.0,0.0021067]
[1739361235259,0.10250365,96266.0,96261.0,0.0001067]
[1739361235394,0.18911538,96266.0,96261.0,0.0001067]
[1739361235596,0.18911538,96266.0,96261.0,0.0041067]
[1739361236015,0.18911538,96266.0,96261.0,0.0001067]
[1739361236225,0.19211538,96266.0,96261.0,0.0001067]
[1739361236428,0.19811538,96266.0,96262.0,0.005]
[1739361236635,0.0961729,96265.0,96262.0,0.005]
[1739361236838,0.10250365,96264.0,96262.0,0.005]
[1739361237410,0.2781,96263.0,96261.0,7e-07]
[1739361237634,0.23060365,96262.0,96261.0,7e-07]
[1739361237818,0.46788323,96262.0,96261.0,7e-07]
[1739361238213,0.15,96261.0,96239.0,0.0145376]
[1739361238425,0.1306,96248.0,96239.0,0.0145376]
[1739361238623,0.25250365,96247.0,96239.0,0.0145376]
[1739361241097,0.25750365,96247.0,96239.0,0.0145376]
[1739361241293,0.05544272,96246.0,96239.0,0.0145376]
[1739361241534,0.15,96244.0,96239.0,0.0145376]
[1739361241709,0.15,96242.0,96239.0,0.0145376]
[1739361241911,0.15,96240.0,96239.0,0.0145376]
[1739361242110,0.28690254,96240.0,96239.0,0.0145376]
[1739361243408,0.41600254,96240.0,96239.0,0.0145376]
[1739361243625,0.42300254,96240.0,96239.0,0.0145376]
[1739361244340,0.42600254,96240.0,96239.0,0.0146442]
[1739361245823,0.41900254,96240.0,96239.0,0.0146442]
[1739361246039,0.33940254,96240.0,96239.0,0.0146442]
[1739361246246,0.30500365,96240.0,96239.0,0.0146442]
[1739361246931,0.30900365,96240.0,96239.0,0.0146442]
[1739361247137,0.25950365,96240.0,96239.0,0.0146442]
[1739361247288,0.01,96240.0,96239.0,0.0146442]
[1739361250345,0.01,96240.0,96223.0,0.0147442]
[1739361250583,0.01,96240.0,96224.0,0.00996842]
[1739361250799,0.01,96240.0,96225.0,0.10250365]
[1739361251041,0.01,96240.0,96226.0,0.00103903]
[1739361251245,0.01,96240.0,96227.0,0.10354268]
[1739361251451,0.007,96240.0,96227.0,0.10354268]
[1739361251797,0.001,96240.0,96227.0,0.10354268]
[1739361252001,0.008,96240.0,96227.0,0.10354268]
[1739361252484,0.001,96240.0,96227.0,0.10354268]
[1739361252737,0.002,96240.0,96227.0,0.10650365]
[1739361252971,0.002,96240.0,96227.0,0.004]
[1739361253191,0.001,96240.0,96227.0,0.004]
[1739361253423,0.01936662,96239.0,96227.0,0.004]
[1739361254348,0.01936662,96239.0,96228.0,0.00815654]
[1739361254749,0.01936662,96238.0,96228.0,0.00815654]
[1739361255477,0.01936662,96238.0,96229.0,0.00103909]
[1739361255727,0.01936662,96237.0,96229.0,0.00103909]
[1739361256151,0.01936662,96237.0,96230.0,0.20345587]
[1739361256380,0.01936662,96237.0,96231.0,0.00103895]
[1739361256610,0.01936662,96237.0,96232.0,0.10354262]
[1739361256815,0.01936662,96237.0,96233.0,0.078]
[1739361257022,0.01936662,96237.0,96235.0,0.078]
[1739361257228,0.15,96265.0,96236.0,0.10250365]
[1739361257399,0.15,96265.0,96236.0,0.10354256]
[1739361257400,0.001,96237.0,96236.0,0.10354256]
[1739361257971,0.001,96237.0,96236.0,0.11168182]
[1739361258175,0.002,96237.0,96236.0,0.11168182]
[1739361258816,0.001,96237.0,96236.0,0.11168182]
[1739361258993,0.003,96237.0,96236.0,0.11168182]
[1739361259398,0.002,96237.0,96236.0,0.11168182]
[1739361259604,0.23291831,96266.0,96236.0,0.11168182]
[1739361259803,0.001,96237.0,96236.0,0.11568182]
[1739361260062,0.003,96237.0,96236.0,0.11568182]
[1739361260234,0.003,96237.0,96236.0,0.11464291]
[1739361260449,0.003,96237.0,96236.0,0.10632709]
[1739361260625,0.002,96237.0,96236.0,0.11211388]
[1739361261407,0.003,96237.0,96236.0,0.11211388]
[1739361261969,0.003,96237.0,96236.0,0.111075]
[1739361262374,0.003,96237.0,96236.0,0.11211388]
[1739361265304,0.003,96237.0,96236.0,0.00350578]
[1739361265530,0.003,96237.0,96236.0,0.007513]
[1739361265736,0.003,96237.0,96236.0,0.00397354]
[1739361265936,0.003,96237.0,96236.0,0.00855188]
[1739361267240,0.003,96237.0,96236.0,0.007513]
[1739361269492,0.00322387,96237.0,96236.0,0.007513]
[1739361274490,0.02260751,96237.0,96236.0,0.007513]
[1739361274677,0.02060751,96237.0,96236.0,0.007513]
[1739361274871,0.01960751,96237.0,96236.0,0.007513]
[1739361275077,0.02160751,96237.0,96236.0,0.008513]
[1739361275299,0.02260751,96237.0,96236.0,0.008513]
[1739361275696,0.00322387,96237.0,96236.0,0.008513]
[1739361277709,0.30322387,96237.0,96236.0,0.008513]
[1739361278063,0.30322387,96237.0,96236.0,0.001]
[1739361281139,0.30222387,96237.0,96236.0,0.00271862]
[1739361281382,0.30022387,96237.0,96235.0,0.0001066]
[1739361281639,0.30222387,96237.0,96236.0,0.00371862]
[1739361281879,0.30322387,96237.0,96236.0,0.00371862]
[1739361282108,0.30322387,96237.0,96236.0,0.00829696]
[1739361282336,0.30222387,96237.0,96236.0,0.00371862]
[1739361282539,0.30222387,96237.0,96236.0,0.00829696]
[1739361282745,0.30222387,96237.0,96236.0,0.00371862]
[1739361283032,0.30322387,96237.0,96236.0,0.00829696]
[1739361283220,0.30122387,96237.0,96236.0,0.00271862]
[1739361283428,0.30322387,96237.0,96236.0,0.00729696]
[1739361283679,0.30322387,96237.0,96235.0,0.0011066]
[1739361284076,0.30122387,96237.0,96235.0,0.0001066]
[1739361284292,0.30322387,96237.0,96236.0,0.001]
[1739361284776,0.30122387,96237.0,96235.0,0.0001066]
[1739361285016,0.30022387,96237.0,96235.0,0.0001066]
[1739361285255,0.30222387,96237.0,96235.0,0.0011066]
[1739361285559,0.30322387,96237.0,96235.0,0.0011066]
[1739361286419,0.30122387,96237.0,96235.0,0.0001066]
[1739361286552,0.30122387,96237.0,96236.0,0.001]
[1739361286782,0.30322387,96237.0,96236.0,0.001]
[1739361287251,0.30122387,96237.0,96235.0,0.0001066]
[1739361287392,0.30322387,96237.0,96235.0,0.0011066]
[1739361287935,0.30122387,96237.0,96235.0,0.0001066]
[1739361288143,0.30022387,96237.0,96236.0,0.001]
[1739361288359,0.30322387,96237.0,96236.0,0.001]
[1739361288741,0.30222387,96237.0,96236.0,0.001]
[1739361288901,0.30322387,96237.0,96236.0,0.001]
[1739361289504,0.30122387,96237.0,96235.0,0.0001066]
[1739361289962,0.30322387,96237.0,96235.0,0.0011066]
[1739361290261,0.30422387,96237.0,96235.0,0.0011066]
[1739361291227,0.30222387,96237.0,96235.0,0.0011066]
[1739361291429,0.30322387,96237.0,96235.0,0.0011066]
[1739361291633,0.30322387,96237.0,96236.0,0.00270001]
[1739361291846,0.30322387,96237.0,96235.0,0.0011066]
[1739361292041,0.30322387,96237.0,96236.0,0.00270001]
[1739361292291,0.30322387,96237.0,96235.0,0.0011066]
[1739361292492,0.30122387,96237.0,96236.0,0.00270001]
[1739361292665,0.30122387,96237.0,96235.0,0.0001066]
[1739361292884,0.30322387,96237.0,96236.0,0.00370001]
[1739361293483,0.30322387,96237.0,96236.0,0.00270001]
[1739361293709,0.30122387,96237.0,96235.0,0.0001066]
[1739361294025,0.30322387,96237.0,96235.0,0.0011066]
[1739361294448,0.30122387,96237.0,96235.0,0.0001066]
[1739361294808,0.30022387,96237.0,96235.0,0.0001066]
[1739361295011,0.30022387,96237.0,96236.0,0.00267052]
[1739361295219,0.30122387,96237.0,96235.0,0.0001066]
[1739361295441,0.30022387,96237.0,96235.0,0.0001066]
[1739361295815,0.30122387,96237.0,96235.0,0.0001066]
[1739361296837,0.30322387,96237.0,96236.0,0.001]
[1739361297296,0.30122387,96237.0,96235.0,0.0001066]
[1739361297798,0.30322387,96237.0,96235.0,0.0011066]
[1739361298001,0.30222387,96237.0,96235.0,0.0011066]
[1739361298277,0.30322387,96237.0,96235.0,0.0011066]
[1739361298841,0.30422387,96237.0,96235.0,0.0011066]
[1739361306317,0.30422387,96237.0,96236.0,0.27654264]
[1739361306723,0.30422387,96237.0,96236.0,0.27550365]
[1739361306932,0.30422387,96237.0,96236.0,0.27817417]
[1739361307345,0.30222387,96237.0,96236.0,0.27817417]
[1739361307558,0.30222387,96237.0,96236.0,0.28597242]
[1739361307777,0.30222387,96237.0,96236.0,0.28697242]
[1739361307967,0.30322387,96237.0,96236.0,0.29097242]
[1739361309182,0.30122387,96237.0,96236.0,0.28997242]
[1739361309392,0.30122387,96237.0,96236.0,0.43120642]
[1739361309632,0.30222387,96237.0,96236.0,0.43120642]
[1739361310433,0.30122387,96237.0,96236.0,0.41720642]
[1739361310659,0.30222387,96237.0,96236.0,0.43120642]
[1739361310859,0.30122387,96237.0,96236.0,0.42720642]
[1739361311080,0.30222387,96237.0,96236.0,0.43320642]
[1739361311284,0.30122387,96237.0,96236.0,0.42720642]
[1739361311639,0.30222387,96237.0,96236.0,0.43420642]
[1739361312979,0.30122387,96237.0,96236.0,0.42020642]
[1739361313223,0.30122387,96237.0,96236.0,0.43520642]
[1739361314609,0.30122387,96237.0,96236.0,0.97800642]
[1739361321383,0.30122387,96237.0,96236.0,1.49755642]
[1739361321831,0.00122387,96237.0,96236.0,1.49755642]
[1739361322890,0.00022387,96237.0,96236.0,1.49055642]
[1739361323333,0.00022387,96237.0,96236.0,1.49755642]
[1739361327366,0.1225,96263.0,96242.0,0.01]
[1739361327544,0.1225,96263.0,96253.0,0.1452667]
[1739361327742,0.1225,96263.0,96255.0,0.023]
[1739361327944,0.1225,96263.0,96257.0,0.023]
[1739361328147,0.1225,96263.0,96262.0,0.02055912]
[1739361328349,0.1225,96263.0,96262.0,0.14779312]
[1739361328665,0.1225,96263.0,96262.0,0.12940487]
[1739361330451,0.1225,96263.0,96262.0,0.00440487]
[1739361335156,0.0467,96263.0,96262.0,0.12990852]
[1739361335560,0.0467,96263.0,96262.0,0.007042]
[1739361335911,0.0467,96263.0,96262.0,0.00490852]
[1739361336938,0.0467,96263.0,96262.0,0.00501512]
[1739361337182,0.04692387,96263.0,96262.0,0.00501512]
[1739361338045,0.04692387,96263.0,96262.0,0.01281337]
[1739361339398,0.04692387,96263.0,96262.0,0.00501512]
[1739361340707,0.04692387,96263.0,96262.0,0.01281337]
[1739361341632,0.04692387,96263.0,96262.0,0.00501512]
[1739361343277,0.18224717,96267.0,96262.0,0.00501512]
[1739361343697,0.18224717,96267.0,96263.0,0.0057548]
[1739361343892,0.18224717,96267.0,96264.0,0.10250365]
[1739361344297,0.18224717,96267.0,96265.0,0.0017716]
[1739361344503,0.18224717,96267.0,96265.0,0.10427525]
[1739361346866,0.18224717,96267.0,96266.0,0.00750692]
[1739361350047,0.18224717,96267.0,96266.0,0.02521067]
[1739361350176,0.18224717,96267.0,96266.0,0.33200692]
[1739361350383,0.18224717,96267.0,96266.0,0.20700692]
[1739361350607,0.18224717,96267.0,96266.0,0.21296742]
[1739361351057,0.18224717,96267.0,96266.0,0.22076567]
[1739361352285,0.18224717,96267.0,96266.0,0.23830773]
[1739361355398,0.18224717,96267.0,96266.0,0.43780773]
[1739361357113,0.18224717,96267.0,96266.0,0.69031138]
[1739361365430,0.18247104,96267.0,96266.0,0.69031138]
[1739361366603,0.26367104,96267.0,96266.0,0.69031138]
[1739361369774,0.18247104,96267.0,96266.0,0.69031138]
[1739361372067,0.18247104,96267.0,96266.0,1.25611138]
[1739361373877,0.18247104,96267.0,96266.0,1.77550138]
[1739361378037,0.18247104,96267.0,96266.0,1.77560798]
[1739361379717,0.18247104,96267.0,96266.0,1.75260798]
[1739361382026,0.18247104,96267.0,96266.0,1.76016798]
[1739361382935,0.18247104,96267.0,96266.0,1.21736798]
[1739361384986,0.18247104,96267.0,96266.0,1.20980798]
[1739361385205,0.18247104,96267.0,96266.0,1.21732798]
[1739361386803,0.18247104,96267.0,96266.0,1.20952973]
[1739361388202,0.18247104,96267.0,96266.0,1.21352973]
[1739361388565,0.18247104,96267.0,96266.0,1.20600973]
[1739361388776,0.30997104,96267.0,96266.0,0.95350608]
[1739361388992,0.30997104,96267.0,96266.0,0.93463488]
[1739361389518,0.30997104,96267.0,96266.0,0.93000352]
[1739361389738,0.30997104,96267.0,96266.0,0.93700352]
[1739361389918,0.30997104,96267.0,96266.0,0.92600352]
[1739361390301,0.30997104,96267.0,96266.0,0.93100352]
[1739361390477,0.30997104,96267.0,96266.0,0.80600352]
[1739361390687,0.30997104,96267.0,96266.0,0.80100352]
[1739361390930,0.30997104,96267.0,96266.0,0.80200352]